Cogmind - Beta 13 @@@ ROGUE MODE // 2024.05.10 @ 22:01:55 Player: BrainTooSmol Result: Destroyed by S-43 Plague with Heavy Machine Gun Performance ------------- Evolutions (8) 4000 Regions Visited (22) 4400 Robots Destroyed (86) 430 Value Destroyed (2440) 2440 Prototype IDs (35) 700 Alien Tech Used (1) 200 Bonus (3536) 3536 TOTAL SCORE: 15706 Bonus ------- High Alert Combat Kills 10 Follower Combat Kills 72 Met Data Miner 300 Met Warlord at Base 500 MAIN.C Attacked Warlord 500 Warlord Defense Kills 154 Met Sigix 2000 Cogmind --------- Core Integrity 0/1450 Matter 243/300 Energy 15/100 System Corruption 7% Temperature Cool (0) Movement Core (50) Location -2/Research Parts ------- > --- POWER (3) -------- (None) > --- PROPULSION (6) --- (None) > --- UTILITY (12) ----- (None) > --- WEAPON (2) ------- (None) > --- INVENTORY (5) ---- Quantum Reactor System Purifier Sigix Containment Pod Peak State ------------ > --- POWER ------------ Micro Antimatter Reactor Micro Antimatter Reactor > --- PROPULSION ------- Cooled Field Propulsion Drive Cooled Field Propulsion Drive Cooled Field Propulsion Drive Cooled Field Propulsion Drive > --- UTILITY ---------- Experimental Power Amplifier Advanced Signal Interpreter Improved Transmission Jammer Advanced ECM Suite Advanced Reaction Control System Advanced Hacking Suite Advanced Hacking Suite Advanced Hacking Suite Advanced Hacking Suite System Shield System Shield > --- WEAPON ----------- Blade Saw > --- INVENTORY -------- Micro Antimatter Reactor Improved Reaction Control System System Purifier [Rating: 114] Favorites ----------- Power Light Fission Core Engine Improved Ion Engine Power Core Light Fission Core Reactor Micro Antimatter Reactor Propulsion Cooled VTOL Module Treads Light Treads Leg Aluminum Leg Wheel Armored Huge Wheel Hover Unit Cooled Antigrav System Flight Unit Cooled VTOL Module Utility Hacking Suite Device Experimental Sensor Array Storage High-capacity Storage Unit Processor Advanced Signal Interpreter Hackware Hacking Suite Protection Improved Medium Armor Plating Weapon Shotgun Energy Gun Backup Laser I Ballistic Gun Shotgun Launcher Mini Smartbomb Launcher Impact Weapon Mace Slashing Weapon Power Sword Build | -11 -10 -10 -10 -9 -8 -7 -7 -7 -7 -6 -6 -6 -6 -5 -5 -5 -5 -4 -4 -3 -3 -2 ------- Run | Yrd Mat Min Exi Min Mat Fac Low Low Dat Pro Fac Was Fac Fac Upp Upp War Pro Fac Res Qua Res Slots Evolved 16 | . . . . . 4 2 . . . . 2 . . 2 . . . . 2 2 . 2 Power 2 | . . . . . . . . . . . . . . 1 . . . . . 1 . . Propulsion 4 | . . . . . . 1 . . . . 1 . . . . . . . 1 . . 1 Utility 10 | . . . . . 4 1 . . . . 1 . . 1 . . . . 1 1 . 1 Weapon . | . . . . . . . . . . . . . . . . . . . . . . . Parts Attached 149 | 2 6 2 1 . 22 14 . . 2 . 20 . 9 6 . . 9 4 12 10 13 17 Power 20 | . 1 1 . . 1 1 . . 1 . 3 . . . . . 3 1 . 1 5 2 Engine 5 | . . 1 . . 1 1 . . 1 . 1 . . . . . . . . . . . Core 4 | . 1 . . . . . . . . . 2 . . . . . 1 . . . . . Reactor 11 | . . . . . . . . . . . . . . . . . 2 1 . 1 5 2 Propulsion 41 | . 2 1 . . 2 6 . . . . 6 . 2 3 . . 2 . 5 2 2 8 Treads 2 | . 1 1 . . . . . . . . . . . . . . . . . . . . Leg . | . . . . . . . . . . . . . . . . . . . . . . . Wheel 3 | . 1 . . . 2 . . . . . . . . . . . . . . . . . Hover 4 | . . . . . . . . . . . . . . . . . . . . . . 4 Flight 32 | . . . . . . 6 . . . . 6 . 2 3 . . 2 . 5 2 2 4 Utility 73 | 1 1 . 1 . 14 5 . . 1 . 10 . 5 3 . . 4 3 7 6 6 6 Device 45 | 1 . . . . 4 1 . . 1 . 7 . 4 2 . . 4 2 5 4 5 5 Storage 2 | . 1 . 1 . . . . . . . . . . . . . . . . . . . Processor 4 | . . . . . 2 1 . . . . 1 . . . . . . . . . . . Hackware 12 | . . . . . 2 2 . . . . 2 . 1 1 . . . 1 2 . 1 . Protection 10 | . . . . . 6 1 . . . . . . . . . . . . . 2 . 1 Artifact . | . . . . . . . . . . . . . . . . . . . . . . . Weapon 15 | 1 2 . . . 5 2 . . . . 1 . 2 . . . . . . 1 . 1 Energy Gun . | . . . . . . . . . . . . . . . . . . . . . . . Energy Cannon . | . . . . . . . . . . . . . . . . . . . . . . . Ballistic Gun 7 | 1 2 . . . 4 . . . . . . . . . . . . . . . . . Ballistic Cannon . | . . . . . . . . . . . . . . . . . . . . . . . Launcher 2 | . . . . . . 1 . . . . . . 1 . . . . . . . . . Special Weapon . | . . . . . . . . . . . . . . . . . . . . . . . Impact Weapon 1 | . . . . . 1 . . . . . . . . . . . . . . . . . Slashing Weapon 5 | . . . . . . 1 . . . . 1 . 1 . . . . . . 1 . 1 Piercing Weapon . | . . . . . . . . . . . . . . . . . . . . . . . Special Melee Weapon . | . . . . . . . . . . . . . . . . . . . . . . . Unidentified Prototypes 18 | . . . . . . 1 . . . . 1 . 1 . . . 5 . 2 1 2 5 Parts Lost 62 | . . 1 . . 5 . . 3 . . 3 . 2 . . . . 3 7 3 16 19 Power 10 | . . 1 . . 1 . . 1 . . 1 . . . . . . 1 2 . 2 1 Propulsion 17 | . . . . . . . . . . . 1 . 1 . . . . . 2 . 4 9 Utility 28 | . . . . . 3 . . 1 . . 1 . 1 . . . . 1 2 3 7 9 Weapon 7 | . . . . . 1 . . 1 . . . . . . . . . 1 1 . 3 . Highest Loss Streak 12 | . . 1 . . 2 . . 3 . . 3 . 2 . . . . 3 4 1 11 12 To Critical Strikes . | . . . . . . . . . . . . . . . . . . . . . . . Average Slot Usage (%) 90 | . 99 99 100 100 85 91 100 100 81 92 89 93 96 92 94 94 98 98 90 74 54 36 Engine 3 | . . 11 14 14 8 7 7 7 2 7 1 . . . . . 2 . . . . . Core 3 | . 13 1 . . . . . . . . 3 6 6 5 5 5 4 5 3 . . . Treads 1 | . 9 14 14 14 . . . . . . . . . . . . . . . . . . Wheel 3 | . 9 14 14 14 9 . . . . . . . . . . . . . . . . . Flight 13 | . . . . . . 20 23 23 23 23 24 26 25 22 23 23 22 23 25 20 8 4 Device 9 | . 14 14 14 14 7 6 7 7 9 15 12 13 11 9 11 11 10 11 11 3 6 5 Storage 4 | . 14 14 14 14 9 . . . . . . . . . . . . . . . . . Processor 6 | . . . . . 15 9 7 7 7 7 6 6 6 5 5 5 5 5 5 4 4 3 Hackware 21 | . . . . . 5 27 30 30 30 30 32 33 33 34 35 35 35 34 34 31 24 11 Protection 3 | . . . . . 12 6 7 7 . . . . . . . . . . . 8 . . Ballistic Gun 8 | . 27 28 28 28 17 . . . . . . . . . . . . . . . . . Launcher 2 | . . . . . . . 7 7 . . . . . 5 5 5 5 5 3 . . . Slashing Weapon 3 | . . . . . . 6 7 7 7 7 6 6 11 5 5 5 5 3 . 2 1 . Naked Turns 1 | . . . . . . . . . . . . . . . . . . . . . . 1 Heaviest Build 67 | 12 32 32 50 50 67 60 13 13 10 10 13 13 16 17 17 17 25 25 28 20 28 26 Greatest Support 48 | 20 20 10 10 10 28 28 15 15 15 15 22 19 21 22 22 22 26 26 34 40 37 48 Greatest Overweight (x) 5 | . 3 3 4 4 5 2 . . . . . . . . . . . . . . . 1 Average Overweight (x) . | . 2 2 2 4 2 . . . . . . . . . . . . . . . . . Largest Inventory Capacity 20 | 8 15 15 20 20 20 20 5 5 5 5 5 5 5 5 5 5 5 5 5 5 5 5 Average Capacity 9 | 8 13 15 16 20 20 6 5 5 5 5 5 5 5 5 5 5 5 5 5 5 5 5 Most Carried 20 | 6 13 13 14 13 20 20 5 5 5 4 5 5 5 5 5 5 5 5 5 5 5 5 Average Carried 8 | 5 10 12 13 13 18 5 4 5 4 3 4 4 4 4 5 5 4 4 3 4 4 4 Final Capacity 20 | 8 15 15 20 20 20 5 5 5 5 5 5 5 5 5 5 5 5 5 5 5 5 5 Final Carried 20 | 6 12 13 13 13 20 4 5 5 3 4 5 5 4 5 5 5 5 4 5 4 5 4 Class Distribution -------------------- 35% | Mutant 29% | Wizard-Sprinter 26% | Hacker-Sprinter 4% | Wizard-Mutant 3% | Hacker-Mutant Dominant Class ---------------- Mutant | -10/Materials Mutant | -10/Mines Mutant | -10/Exiles Mutant | -9/Mines Mutant | -8/Materials Hacker-Sprinter | -7/Factory Hacker-Sprinter | -7/Lower Caves Hacker-Sprinter | -7/Lower Caves Hacker-Sprinter | -7/Data Miner Hacker-Sprinter | -6/Proximity Caves Hacker-Sprinter | -6/Factory Hacker-Sprinter | -6/Waste Hacker-Sprinter | -6/Factory Wizard-Sprinter | -5/Factory Wizard-Sprinter | -5/Upper Caves Wizard-Sprinter | -5/Upper Caves Wizard-Sprinter | -5/Warlord Wizard-Sprinter | -4/Proximity Caves Wizard-Sprinter | -4/Factory Wizard-Mutant | -3/Research Wizard-Mutant | -3/Quarantine Hacker-Mutant | -2/Research Resources | -11 -10 -10 -10 -9 -8 -7 -7 -7 -7 -6 -6 -6 -6 -5 -5 -5 -5 -4 -4 -3 -3 -2 ----------- Run | Yrd Mat Min Exi Min Mat Fac Low Low Dat Pro Fac Was Fac Fac Upp Upp War Pro Fac Res Qua Res Matter Collected 3489 | 248 296 112 . . 978 159 85 200 . 23 62 . 200 . 180 225 290 144 84 147 46 10 Remotely . | . . . . . . . . . . . . . . . . . . . . . . . Salvage Created 2541 | 64 431 98 . . 1221 119 . 25 . . 86 . 116 . 71 50 50 29 . . . 181 Parts 158 | 9 35 5 . . 54 9 . 6 . . 3 . 11 . 2 7 3 5 . . . 9 Haulers Intercepted 10 | . 2 . . . 6 2 . . . . . . . . . . . . . . . . Recyclers Shooed 1 | 1 . . . . . . . . . . . . . . . . . . . . . . Parts Field Recycled 4 | . . . . . . . . . . . . . . . . . . . . . . 4 Retrieved Matter 88 | . . . . . . . . . . . . . . . . . . . . . . 88 Parts Self-Destructed 22 | . . . . . . . . 8 . . . . . . 5 4 . 5 . . . . Prevented 4 | . . . . . . . . . . . . . . . 1 3 . . . . . . Kills | -11 -10 -10 -10 -9 -8 -7 -7 -7 -7 -6 -6 -6 -6 -5 -5 -5 -5 -4 -4 -3 -3 -2 ------- Run | Yrd Mat Min Exi Min Mat Fac Low Low Dat Pro Fac Was Fac Fac Upp Upp War Pro Fac Res Qua Res Combat Hostiles Destroyed 59 | . 9 5 . . 23 . . 3 . . 2 . . . 2 6 2 4 . . . 3 Melee 4 | . . . . . . . . . . . 2 . . . . . . 1 . . . 1 Guns 37 | . 9 5 . . 23 . . . . . . . . . . . . . . . . . AOE 18 | . . . . . . . . 3 . . . . . . 2 6 2 3 . . . 2 Classes Destroyed 11 | 1 4 . . . 4 1 . . . . . . 1 . . . . . . . . . Worker 3 | . . . . . 1 . . . . . 2 . . . . . . . . . . . Builder 1 | . . . . . . . . . . . . . 1 . . . . . . . . . Tunneler 3 | 3 . . . . . . . . . . . . . . . . . . . . . . Hauler 10 | . 2 . . . 6 2 . . . . . . . . . . . . . . . . Operator 1 | . . . . . . 1 . . . . . . . . . . . . . . . . Watcher 9 | . 3 . . . 3 . . . . . . . 3 . . . . . . . . . Swarmer 24 | . 2 3 . . 3 . . 3 . . 2 . . . . 5 1 4 . . . 1 Grunt 26 | . 7 2 . . 11 . . . . . . . . . 2 1 1 . . . . 2 Duelist 1 | . . . . . 1 . . . . . . . . . . . . . . . . . Sentry 7 | . . . . . 7 . . . . . . . . . . . . . . . . . Hunter 1 | . . . . . 1 . . . . . . . . . . . . . . . . . Best Kill Streak 5 | 2 3 3 . . 4 1 . 3 . . 2 . 1 . 2 5 1 4 . . . 2 Combat Bots Only 5 | . 3 3 . . 3 . . 3 . . 1 . . . 2 5 1 4 . . . 2 Max Kills in Single Turn 3 | 1 1 1 . . 2 1 . 2 . . 1 . 1 . 1 3 1 2 . . . 2 Gunslinging . | . . . . . . . . . . . . . . . . . . . . . . . Exploded 3 | . . . . . . . . 2 . . . . . . 1 3 1 2 . . . 2 Melee 1 | . . . . . . . . . . . 1 . . . . . . 1 . . . 1 Uniques/NPCs Destroyed . | . . . . . . . . . . . . . . . . . . . . . . . Combat | -11 -10 -10 -10 -9 -8 -7 -7 -7 -7 -6 -6 -6 -6 -5 -5 -5 -5 -4 -4 -3 -3 -2 -------- Run | Yrd Mat Min Exi Min Mat Fac Low Low Dat Pro Fac Was Fac Fac Upp Upp War Pro Fac Res Qua Res Hostile Shots Fired 863 | . 43 26 . . 108 14 . 48 . . 38 . 15 . 1 8 2 1 76 71 221 191 Missed 405 | . 10 9 . . 17 10 . 21 . . 20 . 7 . 1 3 . . 51 42 136 78 Damage Taken 8883 | . 419 192 . . 1496 62 . 279 . . 256 . 135 . . 101 43 391 656 534 1668 2651 Core 3223 | . 96 33 . . 203 . . 58 . . 112 . 50 . . . 20 89 167 70 868 1457 Absorbed by Shields 11 | . . . . . . . . . . . . . . . . . . . 11 . . . Regen/Repaired (Parts) 182 | . . . . . 18 . . . . . 69 . . 85 . . 10 . . . . . Core Remaining (%) 72 | 100 . . . 48 63 . . . . 91 . . 80 . . . . 89 85 . 25 . Volleys Fired 215 | 7 39 11 . . 105 . 7 16 . . . . . . 4 9 8 8 1 . . . Largest 2 | 2 2 2 . . 2 . 1 1 . . . . . . 1 1 1 1 1 . . . Hottest 80 | 40 46 46 . . 48 . 30 30 . . . . . . 80 80 80 80 80 . . . Shots Fired 375 | 14 78 21 . . 208 . 7 17 . . . . . . 4 9 8 8 1 . . . Gun 321 | 14 78 21 . . 208 . . . . . . . . . . . . . . . . . Cannon . | . . . . . . . . . . . . . . . . . . . . . . . Launcher 54 | . . . . . . . 7 17 . . . . . . 4 9 8 8 1 . . . Special . | . . . . . . . . . . . . . . . . . . . . . . . Kinetic 321 | 14 78 21 . . 208 . . . . . . . . . . . . . . . . . Thermal . | . . . . . . . . . . . . . . . . . . . . . . . Explosive 54 | . . . . . . . 7 17 . . . . . . 4 9 8 8 1 . . . Electromagnetic . | . . . . . . . . . . . . . . . . . . . . . . . Robot Hit Streak 11 | 3 10 10 . . 11 . . . . . . . . . . . . . . . . . Robot Miss Streak 6 | 3 4 2 . . 6 . . 1 . . . . . . . . . . . . . . Penetration Max . | . . . . . . . . . . . . . . . . . . . . . . . Secondary Targets 3 | . . 1 . . 2 . . . . . . . . . . . . . . . . . Max Gunslinging Chain 1 | . . 1 . . 1 . . . . . . . . . . . . . . . . . Shots Hit Robots 269 | 7 61 18 . . 159 4 1 . . . 8 . 8 . . . . 1 . . . 2 Core Hits 198 | 6 30 8 . . 84 3 . 6 . . 3 . 4 . 6 11 25 4 . . . 8 Critical Kills . | . . . . . . . . . . . . . . . . . . . . . . . Critical Parts Destroyed 5 | . 1 1 . . 3 . . . . . . . . . . . . . . . . . Critical Strikes 5 | . 1 1 . . 3 . . . . . . . . . . . . . . . . . Destroy 5 | . 1 1 . . 3 . . . . . . . . . . . . . . . . . Melee Attacks 118 | . . . . . 1 6 2 10 . . 24 . 40 14 1 3 4 10 . . 1 2 Impact 1 | . . . . . 1 . . . . . . . . . . . . . . . . . Slashing 117 | . . . . . . 6 2 10 . . 24 . 40 14 1 3 4 10 . . 1 2 Piercing . | . . . . . . . . . . . . . . . . . . . . . . . Sneak Attacks 6 | . . . . . . 2 1 . . . 2 . 1 . . . . . . . . . Combat Hostiles . | . . . . . . . . . . . . . . . . . . . . . . . Follow-up Attacks . | . . . . . . . . . . . . . . . . . . . . . . . Damage Inflicted 9409 | 81 794 282 . . 2602 257 67 247 . . 390 . 449 . 349 937 1785 398 . . . 771 Guns 3759 | 81 794 282 . . 2602 . . . . . . . . . . . . . . . . . Cannons . | . . . . . . . . . . . . . . . . . . . . . . . Explosions 4300 | . . . . . . . . 247 . . . . . . 349 937 1785 350 . . . 632 Melee 1335 | . . . . . . 257 67 . . . 390 . 449 . . . . 48 . . . 124 Ramming 15 | . . . . . . . . . . . . . . . . . . . . . . 15 Kinetic 3759 | 81 794 282 . . 2602 . . . . . . . . . . . . . . . . . Thermal . | . . . . . . . . . . . . . . . . . . . . . . . Explosive 4300 | . . . . . . . . 247 . . . . . . 349 937 1785 350 . . . 632 Electromagnetic . | . . . . . . . . . . . . . . . . . . . . . . . Impact . | . . . . . . . . . . . . . . . . . . . . . . . Slashing 1335 | . . . . . . 257 67 . . . 390 . 449 . . . . 48 . . . 124 Piercing . | . . . . . . . . . . . . . . . . . . . . . . . Highest Corruption 10 | . 1 1 1 1 . 1 1 1 1 1 . 9 9 . . . . 7 . 4 10 7 Average Corruption 2 | . 1 1 1 1 . 1 1 1 1 1 . 9 4 . . . . 6 . 2 8 6 Corruption Purged 9 | . . . . . . . . . . . . . 7 . . . . 2 . . . . Corruption Blocked 18 | . . . . . . . . . . . . . . . . . . . . . . 18 Effects 66 | . . 6 2 . . . 1 14 . . . . 15 . . . . 4 . 1 16 7 Message Errors 17 | . . 2 1 . . . . 3 . . . . 5 . . . . 3 . . 3 . Matter Fused 17 | . . 2 . . . . 1 6 . . . . 3 . . . . 1 . . 2 2 Heat Flow Errors 5 | . . . . . . . . . . . . . 2 . . . . . . . 3 . Energy Discharges 8 | . . 1 . . . . . 1 . . . . 2 . . . . . . . 1 3 Parts Rejected 3 | . . . . . . . . . . . . . . . . . . . . . 2 1 Parts Fused 2 | . . . . . . . . 2 . . . . . . . . . . . . . . Data Loss (minor) 7 | . . . 1 . . . . 1 . . . . 2 . . . . . . 1 2 . Data Loss (major) 4 | . . . . . . . . . . . . . 1 . . . . . . . 2 1 Misfires 1 | . . . . . . . . 1 . . . . . . . . . . . . . . Alerts 1 | . . . . . . . . . . . . . . . . . . . . . 1 . Weapon Failures 1 | . . 1 . . . . . . . . . . . . . . . . . . . . Overload Shots . | . . . . . . . . . . . . . . . . . . . . . . . Overflow Damage 334 | . . . . . . 5 27 . . . 63 . 47 . 5 118 16 15 . . . 38 Projectiles . | . . . . . . . . . . . . . . . . . . . . . . . Explosions 157 | . . . . . . . . . . . . . . . 5 118 16 15 . . . 3 Melee 177 | . . . . . . 5 27 . . . 63 . 47 . . . . . . . . 35 Knockbacks . | . . . . . . . . . . . . . . . . . . . . . . . Impact . | . . . . . . . . . . . . . . . . . . . . . . . Kinetic . | . . . . . . . . . . . . . . . . . . . . . . . Secondary . | . . . . . . . . . . . . . . . . . . . . . . . Self-Inflicted Damage 113 | . . . . . . . . 45 . . . . . . . 12 3 46 . . . 7 Shots 4 | . . . . . . . . 1 . . . . . . . 1 1 1 . . . . Rammed 6 | . . . . . . . . . . . . . . . . . . . . . . 6 Targets Rammed 6 | . . . . . . . . . . . . . . . . . . . . . . 6 Kicked . | . . . . . . . . . . . . . . . . . . . . . . . Crushed . | . . . . . . . . . . . . . . . . . . . . . . . Highest Temperature 222 | . 20 15 . . 20 . . . . . . . 199 . 40 64 85 133 40 202 222 . Average Temperature 35 | . 6 10 . . 7 . . . . . . . 94 . 22 27 35 59 26 110 91 . Received Heat Transfer 1591 | . 201 69 . . 729 . . 45 . . . . 45 . . . 18 . 30 48 262 144 Siege Activations . | . . . . . . . . . . . . . . . . . . . . . . . Robots Corrupted . | . . . . . . . . . . . . . . . . . . . . . . . Combat Hostiles . | . . . . . . . . . . . . . . . . . . . . . . . Parts Fried . | . . . . . . . . . . . . . . . . . . . . . . . Impact Corruptions . | . . . . . . . . . . . . . . . . . . . . . . . Robots Melted . | . . . . . . . . . . . . . . . . . . . . . . . Combat Hostiles . | . . . . . . . . . . . . . . . . . . . . . . . Parts Melted . | . . . . . . . . . . . . . . . . . . . . . . . Heat Transferred . | . . . . . . . . . . . . . . . . . . . . . . . Parts Sabotaged . | . . . . . . . . . . . . . . . . . . . . . . . Parts Stolen . | . . . . . . . . . . . . . . . . . . . . . . . Parts Stripped . | . . . . . . . . . . . . . . . . . . . . . . . Power Chain Reactions . | . . . . . . . . . . . . . . . . . . . . . . . Alert | -11 -10 -10 -10 -9 -8 -7 -7 -7 -7 -6 -6 -6 -6 -5 -5 -5 -5 -4 -4 -3 -3 -2 ------- Run | Yrd Mat Min Exi Min Mat Fac Low Low Dat Pro Fac Was Fac Fac Upp Upp War Pro Fac Res Qua Res Peak Influence 495 | 15 219 120 . 6 261 224 . . . . 153 62 201 92 . . . . 238 237 412 495 Initial 132 | . 9 2 . . 1 107 . . . . . 17 43 24 . . . . . 69 132 116 Average 95 | 7 63 40 . . 121 97 . . . . 40 35 93 33 . . . . 90 134 246 239 Maximum Alert Level 2 | . 1 . . . 1 1 . . . . . . 1 . . . . . 1 1 2 2 Low Security (%) 88 | 100 96 100 . 100 88 75 . . . . 100 100 91 100 . . . . 98 74 39 47 Level 1 10 | . 3 . . . 11 24 . . . . . . 8 . . . . . 1 25 54 43 Level 2 . | . . . . . . . . . . . . . . . . . . . . . 5 8 Level 3 . | . . . . . . . . . . . . . . . . . . . . . . . Level 4 . | . . . . . . . . . . . . . . . . . . . . . . . Level 5 . | . . . . . . . . . . . . . . . . . . . . . . . High Security . | . . . . . . . . . . . . . . . . . . . . . . . Max Security . | . . . . . . . . . . . . . . . . . . . . . . . Squads Dispatched 21 | . 1 . . 1 1 3 . . . . . . 3 4 . . . . 4 . 2 2 Investigation 12 | . . . . 1 . 1 . . . . . . 3 3 . . . . 2 . 1 1 Extermination 3 | . . . . . . 2 . . . . . . . . . . . . 1 . . . Reinforcement 5 | . 1 . . . . . . . . . . . . 1 . . . . 1 . 1 1 Assault . | . . . . . . . . . . . . . . . . . . . . . . . Garrison 1 | . . . . . 1 . . . . . . . . . . . . . . . . . Intercept . | . . . . . . . . . . . . . . . . . . . . . . . Searches Triggered . | . . . . . . . . . . . . . . . . . . . . . . . Construction Impeded . | . . . . . . . . . . . . . . . . . . . . . . . Haulers Reinforced . | . . . . . . . . . . . . . . . . . . . . . . . Active Scanning Responses . | . . . . . . . . . . . . . . . . . . . . . . . Cargo Convoy Interrupts . | . . . . . . . . . . . . . . . . . . . . . . . Stealth | -11 -10 -10 -10 -9 -8 -7 -7 -7 -7 -6 -6 -6 -6 -5 -5 -5 -5 -4 -4 -3 -3 -2 --------- Run | Yrd Mat Min Exi Min Mat Fac Low Low Dat Pro Fac Was Fac Fac Upp Upp War Pro Fac Res Qua Res Distress Signals 15 | . 2 . . . 3 . . . . . . . 1 . . . 1 . 4 1 2 1 Communications Jammed . | . . . . . . . . . . . . . . . . . . . . . . . Distress Signals . | . . . . . . . . . . . . . . . . . . . . . . . Times Spotted 302 | . 20 5 . 2 37 8 . 18 . . 8 2 17 3 4 2 20 1 51 20 42 42 Peak Tracking Total 16 | . 4 3 . 2 4 2 . 4 . . 4 4 9 1 4 2 12 2 12 11 11 16 Tactical Retreats 46 | . 4 . . . 1 . . 4 . . 3 . 3 . . 1 3 . 8 4 8 7 Traps | -11 -10 -10 -10 -9 -8 -7 -7 -7 -7 -6 -6 -6 -6 -5 -5 -5 -5 -4 -4 -3 -3 -2 ------- Run | Yrd Mat Min Exi Min Mat Fac Low Low Dat Pro Fac Was Fac Fac Upp Upp War Pro Fac Res Qua Res Traps Triggered 10 | . 1 . . . 1 . . . . . 3 . 1 . . . . . 3 1 . . Indirectly . | . . . . . . . . . . . . . . . . . . . . . . . Trap Hack Attempts . | . . . . . . . . . . . . . . . . . . . . . . . Triggered . | . . . . . . . . . . . . . . . . . . . . . . . Disarmed . | . . . . . . . . . . . . . . . . . . . . . . . Reprogrammed . | . . . . . . . . . . . . . . . . . . . . . . . Reused . | . . . . . . . . . . . . . . . . . . . . . . . Traps Extracted . | . . . . . . . . . . . . . . . . . . . . . . . Installed . | . . . . . . . . . . . . . . . . . . . . . . . Triggered 13 | . . . . . . . . . . . . . . . 3 1 9 . . . . . Objects Rigged 2 | . . . . . . . . . . . . . . . . . . . . . . 2 Exploded 1 | . . . . . . . . . . . . . . . . . . . . . . 1 Machines | -11 -10 -10 -10 -9 -8 -7 -7 -7 -7 -6 -6 -6 -6 -5 -5 -5 -5 -4 -4 -3 -3 -2 ---------- Run | Yrd Mat Min Exi Min Mat Fac Low Low Dat Pro Fac Was Fac Fac Upp Upp War Pro Fac Res Qua Res Machines Disabled 1 | . . . . . . . . . . . . . . . . . . . . . . 1 Max in Single Turn 1 | . . . . . . . . . . . . . . . . . . . . . . 1 Garrison Access 10 | . . . . . 1 . . . . . 2 . 2 . . . . . 2 . 1 2 Machines Repaired . | . . . . . . . . . . . . . . . . . . . . . . . Machines Dismantled . | . . . . . . . . . . . . . . . . . . . . . . . Machines Sabotaged . | . . . . . . . . . . . . . . . . . . . . . . . Overloaded Fab Kills . | . . . . . . . . . . . . . . . . . . . . . . . Hacking | -11 -10 -10 -10 -9 -8 -7 -7 -7 -7 -6 -6 -6 -6 -5 -5 -5 -5 -4 -4 -3 -3 -2 --------- Run | Yrd Mat Min Exi Min Mat Fac Low Low Dat Pro Fac Was Fac Fac Upp Upp War Pro Fac Res Qua Res Machines Accessed 121 | . 5 . 1 1 12 9 . . 4 . 13 . 17 9 . . 6 . 15 7 16 6 Terminals 70 | . 5 . . 1 8 6 . . . . 6 . 11 5 . . . . 9 4 13 2 Fabricators 10 | . . . . . . 1 . . . . 1 . 3 3 . . . . 2 . . . Repair Stations 8 | . . . . . 1 . . . . . 2 . . 1 . . . . 1 1 1 1 Recycling Units 5 | . . . . . . 2 . . . . 1 . . . . . . . 1 . . 1 Scanalyzers 6 | . . . . . 2 . . . . . 1 . 1 . . . . . . 1 1 . Garrison Access 11 | . . . . . 1 . . . . . 2 . 2 . . . . . 2 1 1 2 Total Hacks 384 | . 13 . 1 2 35 41 . . 32 . 42 . 44 33 . . 16 . 41 30 39 15 Successful 291 | . 9 . 1 1 25 18 . . 32 . 32 . 36 31 . . 16 . 35 25 21 9 Failed 91 | . 3 . . 1 9 23 . . . . 10 . 8 2 . . . . 6 5 18 6 Catastrophic 9 | . . . . 1 . 4 . . . . 1 . . . . . . . 1 . 2 . Database Lockouts 2 | . 1 . . . 1 . . . . . . . . . . . . . . . . . Manual 148 | . 10 . . 2 18 25 . . . . 7 . 20 18 . . 1 1 21 9 11 5 Terminals 224 | . 13 . . 2 21 30 . . . . 20 . 27 22 . . . . 28 21 32 8 Fabricators 22 | . . . . . . 2 . . . . 1 . 7 7 . . . . 5 . . . Repair Stations 26 | . . . . . 2 . . . . . 12 . . 4 . . . . 2 3 1 2 Recycling Units 18 | . . . . . . 9 . . . . 3 . . . . . . . 4 . . 2 Scanalyzers 28 | . . . . . 10 . . . . . 4 . 6 . . . . . . 4 4 . Garrison Access 17 | . . . . . 2 . . . . . 2 . 4 . . . . . 2 2 2 3 Terminal Hacks 155 | . 4 . 1 1 9 6 . . 32 . 12 . 14 13 . . 16 . 16 14 15 2 Record 38 | . . . 1 . . . . . 11 . . . 1 . . . 14 . 2 1 8 . Part Schematic 29 | . 1 . . 1 2 . . . 11 . 3 . 3 3 . . . . 3 1 1 . Robot Schematic 7 | . . . . . . . . . 7 . . . . . . . . . . . . . Robot Analysis 5 | . 2 . . . 2 . . . . . . . . . . . . . . 1 . . Prototype ID Bank 3 | . . . . . . . . . 3 . . . . . . . . . . . . . Open Door 5 | . . . . . . . . . . . . . . . . . 2 . . 1 2 . Level Access Points 2 | . . . . . . . . . . . 1 . . . . . . . 1 . . . Branch Access Points 4 | . . . . . . 1 . . . . 1 . . 1 . . . . . . 1 . Emergency Access Points 3 | . . . . . . . . . . . 1 . 2 . . . . . . . . . Machine Index 3 | . . . . . . . . . . . 1 . . . . . . . . 1 1 . Terminal Index 5 | . . . . . . 1 . . . . 1 . 1 1 . . . . . 1 . . Fabricator Index 2 | . . . . . . . . . . . . . . 1 . . . . . . . 1 Repair Station Index 3 | . . . . . . . . . . . 1 . . 1 . . . . . 1 . . Recycling Unit Index 1 | . . . . . . . . . . . . . . . . . . . . 1 . . Scanalyzer Index 3 | . . . . . . . . . . . 1 . . 1 . . . . . 1 . . Alert Level 5 | . . . . . . . . . . . . . 1 1 . . . . 2 1 . . Unreport Threat 1 | . . . . . . . . . . . . . . . . . . . 1 . . . Locate Traps 1 | . . . . . . . . . . . . . . . . . . . 1 . . . Dispatch Records 3 | . . . . . 1 . . . . . . . . . . . . . . . 1 1 Surveillance Status 1 | . . . . . . . . . . . . . . . . . . . . . 1 . Patrol Status 1 | . . . . . . . . . . . . . . . . . . . 1 . . . Transport Status 3 | . . . . . 3 . . . . . . . . . . . . . . . . . Recall Investigation 8 | . . . . . . . . . . . . . 3 3 . . . . 2 . . . Recall Extermination 3 | . . . . . . 2 . . . . . . . . . . . . 1 . . . Hauler Manifests 1 | . . . . . 1 . . . . . . . . . . . . . . . . . Registered Components 6 | . 1 . . . . 1 . . . . 1 . 1 . . . . . 1 1 . . Registered Prototypes 1 | . . . . . . . . . . . . . . . . . . . . 1 . . Zone Layout 8 | . . . . . . 1 . . . . 1 . 2 1 . . . . 1 2 . . Fabricator Hacks 21 | . . . . . . 1 . . . . 1 . 7 7 . . . . 5 . . . Network Status 5 | . . . . . . 1 . . . . 1 . 1 1 . . . . 1 . . . Load Schematic 8 | . . . . . . . . . . . . . 3 3 . . . . 2 . . . Build 8 | . . . . . . . . . . . . . 3 3 . . . . 2 . . . Repair Station Hacks 19 | . . . . . 2 . . . . . 7 . . 4 . . . . 2 2 1 1 Scan Component 9 | . . . . . 1 . . . . . 4 . . 2 . . . . 1 1 . . Repair 8 | . . . . . 1 . . . . . 3 . . 2 . . . . 1 1 . . Refit 2 | . . . . . . . . . . . . . . . . . . . . . 1 1 Recycling Unit Hacks 10 | . . . . . . 4 . . . . 3 . . . . . . . 1 . . 2 Process 2 | . . . . . . 1 . . . . 1 . . . . . . . . . . . Report Inventory 5 | . . . . . . 2 . . . . 1 . . . . . . . 1 . . 1 Retrieve Matter 2 | . . . . . . 1 . . . . 1 . . . . . . . . . . . Retrieve Components 1 | . . . . . . . . . . . . . . . . . . . . . . 1 Scanalyzer 26 | . . . . . 10 . . . . . 4 . 6 . . . . . . 4 2 . Insert Component 12 | . . . . . 5 . . . . . 2 . 2 . . . . . . 2 1 . Analyze 14 | . . . . . 5 . . . . . 2 . 4 . . . . . . 2 1 . Garrison Access Hacks 10 | . . . . . 1 . . . . . 2 . 2 . . . . . 2 . 1 2 Seal Access 10 | . . . . . 1 . . . . . 2 . 2 . . . . . 2 . 1 2 Unauthorized Hacks 50 | . 5 . . . 3 7 . . . . 3 . 7 7 . . . . 9 5 2 2 Terminals 42 | . 5 . . . 3 4 . . . . 3 . 7 7 . . . . 6 3 2 2 Track 3 | . . . . . . . . . . . . . 1 2 . . . . . . . . Assimilate 11 | . 1 . . . . 2 . . . . . . 3 2 . . . . 2 . 1 . Botnet 16 | . 3 . . . 2 2 . . . . 2 . 2 2 . . . . 2 1 . . Detonate 1 | . . . . . . . . . . . . . . . . . . . . . . 1 Disrupt 4 | . . . . . . . . . . . . . . . . . . . 2 1 . 1 Operators 7 | . 1 . . . 1 . . . . . 1 . 1 1 . . . . . 1 1 . Fabricators . | . . . . . . . . . . . . . . . . . . . . . . . Repair Stations . | . . . . . . . . . . . . . . . . . . . . . . . Recycling Units 6 | . . . . . . 3 . . . . . . . . . . . . 3 . . . Reject 2 | . . . . . . 1 . . . . . . . . . . . . 1 . . . Recyclers 1 | . . . . . . . . . . . . . . . . . . . 1 . . . Mask 3 | . . . . . . 2 . . . . . . . . . . . . 1 . . . Scanalyzers . | . . . . . . . . . . . . . . . . . . . . . . . Garrison Access 2 | . . . . . . . . . . . . . . . . . . . . 2 . . Redirect 1 | . . . . . . . . . . . . . . . . . . . . 1 . . Watchers 1 | . . . . . . . . . . . . . . . . . . . . 1 . . Data Cores Recovered . | . . . . . . . . . . . . . . . . . . . . . . . Used . | . . . . . . . . . . . . . . . . . . . . . . . Hacking Detections 79 | . 5 . . 1 8 7 . . . . 7 . 13 8 . . . . 11 6 9 4 Full Trace Events 12 | . . . . 1 . 1 . . . . . . 3 3 . . . . 2 . 1 1 Feedback Events 1 | . . . . . . . . . . . . . . . . . . . . . . 1 Hackware Fried 1 | . . . . . . . . . . . . . . . . . . . . . . 1 Feedback Blocked . | . . . . . . . . . . . . . . . . . . . . . . . Robot Schematics Acquired 7 | . . . . . . . . . 7 . . . . . . . . . . . . . Robots Built . | . . . . . . . . . . . . . . . . . . . . . . . Authchips . | . . . . . . . . . . . . . . . . . . . . . . . Time . | . . . . . . . . . . . . . . . . . . . . . . . Total Robot Build Rating . | . . . . . . . . . . . . . . . . . . . . . . . Part Schematics Acquired 41 | . 1 . . 1 7 . . . 11 . 5 . 5 3 . . . . 3 3 2 . Parts Built 8 | . . . . . . . . . . . . . 3 3 . . . . 2 . . . Authchips . | . . . . . . . . . . . . . . . . . . . . . . . Time 737 | . . . . . . . . . . . . . 257 321 . . . . 159 . . . Total Part Build Rating 50 | . . . . . . . . . . . . . 18 20 . . . . 12 . . . Parts Repaired 6 | . . . . . 1 . . . . . 3 . . 2 . . . . . . . . Time 313 | . . . . . 26 . . . . . 104 . . 47 . . . . 68 68 . . Parts Recycled . | . . . . . . . . . . . . . . . . . . . . . . . Recycled Matter 303 | . . . . . . 299 . . . . 4 . . . . . . . . . . . Retrieved Matter 400 | . . . . . . 396 . . . . 4 . . . . . . . . . . . Retrieved Components 2 | . . . . . . . . . . . . . . . . . . . . . . 2 Parts Scanalyzed 12 | . . . . . 5 . . . . . 2 . 2 . . . . . . 2 1 . Part Schematics Acquired 12 | . . . . . 5 . . . . . 2 . 2 . . . . . . 2 1 . Parts Damaged 1 | . . . . . . . . . . . . . . . . . . . . 1 . . Bothacking | -11 -10 -10 -10 -9 -8 -7 -7 -7 -7 -6 -6 -6 -6 -5 -5 -5 -5 -4 -4 -3 -3 -2 ------------ Run | Yrd Mat Min Exi Min Mat Fac Low Low Dat Pro Fac Was Fac Fac Upp Upp War Pro Fac Res Qua Res Used RIF Installer . | . . . . . . . . . . . . . . . . . . . . . . . Robots Hacked . | . . . . . . . . . . . . . . . . . . . . . . . Non-combat . | . . . . . . . . . . . . . . . . . . . . . . . Combat . | . . . . . . . . . . . . . . . . . . . . . . . Robot Hacks Applied . | . . . . . . . . . . . . . . . . . . . . . . . Relay Couplers Released 3 | . . . . . . . . . . . . . 3 . . . . . . . . . Machine Destruction 3 | . . . . . . . . . . . . . 3 . . . . . . . . . Fabnet Peak Effective % . | . . . . . . . . . . . . . . . . . . . . . . . Robots Rewired 1 | . . . . . . . . . . . . . . . . . 1 . . . . . Allies Hacked . | . . . . . . . . . . . . . . . . . . . . . . . Hacks Repelled 1 | . . . . . . . . . . . . . . . . . 1 . . . . . Allies | -11 -10 -10 -10 -9 -8 -7 -7 -7 -7 -6 -6 -6 -6 -5 -5 -5 -5 -4 -4 -3 -3 -2 -------- Run | Yrd Mat Min Exi Min Mat Fac Low Low Dat Pro Fac Was Fac Fac Upp Upp War Pro Fac Res Qua Res Total Allies 11 | . 1 . . . . 2 . . . . . . 3 2 . . 1 . 1 . 1 . Largest Group 3 | . 1 1 1 1 1 3 . . . . . . 3 2 2 2 1 1 1 . 1 . Highest-Rated Group 46 | . 10 10 10 10 10 46 . . . . . . 46 36 36 36 42 42 10 . 26 . Highest-Rated Ally 42 | . 10 10 10 10 10 26 . . . . . . 26 26 26 26 42 42 10 . 26 . Total Orders 46 | . 4 4 . . 6 10 . . . . . . 3 6 9 2 . 1 . . 1 . STAY 24 | . 2 2 . . 3 5 . . . . . . 2 3 4 1 . 1 . . 1 . FOLLOW 22 | . 2 2 . . 3 5 . . . . . . 1 3 5 1 . . . . . . Ally Attacks 5 | . . . . . . . . . . . . . . . . . 5 . . . . . Total Damage 215 | . . . . . . . . . . . . . . . . . 215 . . . . . Kills 2 | . . . . . . . . . . . . . . . . . 2 . . . . . Allies Corrupted 1 | . . . . . . 1 . . . . . . . . . . . . . . . . Allies Melted . | . . . . . . . . . . . . . . . . . . . . . . . Intel | -11 -10 -10 -10 -9 -8 -7 -7 -7 -7 -6 -6 -6 -6 -5 -5 -5 -5 -4 -4 -3 -3 -2 ------- Run | Yrd Mat Min Exi Min Mat Fac Low Low Dat Pro Fac Was Fac Fac Upp Upp War Pro Fac Res Qua Res Robot Analysis Total 5 | . 2 . . . 2 . . . . . . . . . . . . . . 1 . . Derelict Logs Recovered 11 | . . . . 1 . . 1 1 . 2 . . . . 2 1 . 3 . . . . Drone Launches . | . . . . . . . . . . . . . . . . . . . . . . . Drone Recoveries . | . . . . . . . . . . . . . . . . . . . . . . . Exploration | -11 -10 -10 -10 -9 -8 -7 -7 -7 -7 -6 -6 -6 -6 -5 -5 -5 -5 -4 -4 -3 -3 -2 ------------- Run | Yrd Mat Min Exi Min Mat Fac Low Low Dat Pro Fac Was Fac Fac Upp Upp War Pro Fac Res Qua Res Turns Passed 14099 | 80 1399 552 179 108 2915 781 228 1055 28 135 761 19 803 804 414 405 734 944 814 221 423 297 Spaces Moved 19963 | 26 850 414 151 78 1744 1291 658 1278 77 371 1422 65 1789 1326 1012 769 1210 1178 2167 511 978 598 Core 79 | . . . . . . . . . . . . . . . . . . . . . . 79 Treads . | . . . . . . . . . . . . . . . . . . . . . . . Legs 251 | 26 225 . . . . . . . . . . . . . . . . . . . . . Wheels 3059 | . 625 414 151 78 1744 47 . . . . . . . . . . . . . . . . Hover 182 | . . . . . . . . . . . . . . . . . . . . . . 182 Flight 16392 | . . . . . . 1244 658 1278 77 371 1422 65 1789 1326 1012 769 1210 1178 2167 511 978 337 Fastest Speed 19 | 120 120 110 110 140 115 29 29 29 29 29 26 26 26 26 26 26 26 26 23 19 22 32 Average Speed 44 | 120 130 110 117 140 130 32 29 29 29 29 28 26 27 26 26 26 26 26 25 34 37 41 Slowest Speed 190 | 120 190 125 140 140 155 165 29 29 29 29 40 26 29 27 26 26 29 26 35 40 45 120 Overloaded Moves 163 | . . . . . . . . . . . . . . . . . . . . 37 102 24 Propulsion Burnouts . | . . . . . . . . . . . . . . . . . . . . . . . Robots Hopped 83 | . . . . . . 6 . . . . 3 . 16 3 2 . . . 19 2 31 1 Cave-ins Triggered 2 | . . . . . . . . . . . . . . . . . . 2 . . . . Teleports 1 | . . . . . . . . . . . . . . . . . . . . . 1 . Exploration Rate (%) 56 | 2 97 55 48 22 90 22 69 96 68 57 41 63 39 23 71 77 98 81 48 21 91 22 Regions Visited 22 Branch Regions 12 Pre-discovered Areas 5 | . . . 1 . . . . . 1 . . . . . 1 . . 2 . . . . Known Exits Taken 14 | . . . . . . 1 1 1 1 1 . . 1 1 1 1 1 1 1 1 1 . Unknown Exits Taken 6 | 1 1 1 1 1 1 . . . . . . . . . . . . . . . . . Scrap Searched 20 | . . 1 . . . . 4 3 . 2 . . . . 3 3 . 4 . . . . Spaces Dug 203 | . . . . . 1 2 23 40 . . 10 . 25 13 1 3 4 81 . . . . Terrain Destroyed 628 | . . . . . 1 2 90 198 . . 10 . 25 13 34 68 34 141 12 . . . Melee 78 | . . . . . 1 2 . 10 . . 10 . 25 13 1 3 4 9 . . . . Projectile . | . . . . . . . . . . . . . . . . . . . . . . . AOE 550 | . . . . . . . 90 188 . . . . . . 33 65 30 132 12 . . . Terrain Rammed . | . . . . . . . . . . . . . . . . . . . . . . . Walls Destroyed . | . . . . . . . . . . . . . . . . . . . . . . . Machines Disabled . | . . . . . . . . . . . . . . . . . . . . . . . Actions | -11 -10 -10 -10 -9 -8 -7 -7 -7 -7 -6 -6 -6 -6 -5 -5 -5 -5 -4 -4 -3 -3 -2 --------- Run | Yrd Mat Min Exi Min Mat Fac Low Low Dat Pro Fac Was Fac Fac Upp Upp War Pro Fac Res Qua Res Total 24457 | 62 1070 485 152 77 2176 1643 683 1928 81 397 1737 66 2038 1758 1153 957 1613 1789 2407 549 994 642 Wait 3910 | 22 156 57 . . 280 313 16 625 3 26 247 . 213 406 139 177 366 589 215 26 26 8 Move 19780 | 25 849 413 150 77 1743 1278 657 1277 76 370 1416 64 1756 1319 1007 768 1209 1176 2129 506 919 596 Hop 78 | . . . . . . 6 . . . . 3 . 16 3 2 . . . 18 2 27 1 Pick Up 65 | 3 11 2 . . 15 4 1 . . 1 7 1 4 5 . . 2 . 3 2 3 1 Fast Attach 83 | 1 2 . . . 12 5 . . . . 13 . 2 3 . . 9 1 5 6 10 14 Attach 40 | . 1 1 . . 5 8 . . 2 . 3 . 4 1 . . . 2 2 4 4 3 Detach 8 | . . . . . 1 . . . . . 1 . . 1 . . . 1 . 2 1 1 Swap 27 | 1 3 1 1 . 5 1 . . . . 4 . 3 2 . . . 1 5 . . . Drop 95 | 3 9 . 1 . 9 22 . . . . 8 1 5 4 . . 13 . 6 1 3 10 Fire 215 | 7 39 11 . . 105 . 7 16 . . . . . . 4 9 8 8 1 . . . Melee 113 | . . . . . 1 6 2 10 . . 24 . 35 14 1 3 4 10 . . 1 2 Ram 6 | . . . . . . . . . . . . . . . . . . . . . . 6 Kick . | . . . . . . . . . . . . . . . . . . . . . . . Crush . | . . . . . . . . . . . . . . . . . . . . . . . Escape Stasis 35 | . . . . . . . . . . . 11 . . . . . . 1 23 . . . Rewire 2 | . . . . . . . . . . . . . . . . . 2 . . . . . Trap . | . . . . . . . . . . . . . . . . . . . . . . . Miscellaneous . | . . . . . . . . . . . . . . . . . . . . . . . Route ------- -11/Scrapyard -10/Materials (discovered 5 exits: [*Mat x3] / [*Min] / [*Sub]) -10/Mines -10/Exiles -9/Mines -8/Materials (discovered 2 exits: *Fac x2) -7/Factory (discovered 5 exits: *Fac / Sto x2 / *Low x2) -7/Lower Caves (discovered 2 exits: *Low / *Zio) -7/Lower Caves (discovered 2 exits: *Fac / *Dat) -7/Data Miner -6/Proximity Caves -6/Factory (discovered 6 exits: *Fac x4 / *Low x2) -6/Waste -6/Factory (discovered 3 exits: *Fac x3) -5/Factory (discovered 4 exits: *Upp x2 / *Ext x2) -5/Upper Caves -5/Upper Caves -5/Warlord -4/Proximity Caves -4/Factory (discovered 5 exits: *Res x4 / *Upp) -3/Research -3/Quarantine -2/Research History --------- Turn | Location | Event 13 | -11/Scrapyard | Discovered new exit (range 3) 81 | -11/Scrapyard | Entered Materials 312 | -10/Materials | Build established: Mutant 488 | -10/Materials | Discovered new exit (range 10) 814 | -10/Materials | Discovered new exit (range 10) 1216 | -10/Materials | Discovered new exit (range 5) 1255 | -10/Materials | Discovered new exit (range 16) 1383 | -10/Materials | Central database locked down 1461 | -10/Materials | Discovered new exit (range 5) 1480 | -10/Materials | Entered Mines 1480 | -10/Mines | Accompanied by 1 ally 1564 | -10/Mines | Met a Derelict bent on vengeance 1673 | -10/Mines | YI-UF0 nonchalantly dropped a Grenade Launcher on the ground 1685 | -10/Mines | Found a hidden stash of uninstalled traps 1757 | -10/Mines | Deemed a non-threat by the Exiles lab entrance 1757 | -10/Mines | Discovered new exit (range 5) 1800 | -10/Mines | Core integrity fell below 50% 1812 | -10/Mines | Found a damaged Exp. Sensor Array with a note attached 1815 | -10/Mines | Found Prototype Device 2032 | -10/Mines | Entered Exiles 2032 | -10/Exiles | Accompanied by 1 ally 2058 | -10/Exiles | Met 8R-AWN 2079 | -10/Exiles | Met EX-HEX 2127 | -10/Exiles | Learned location of Zion (-6) 2191 | -10/Exiles | Discovered new exit (range 14) 2211 | -10/Exiles | Entered Mines 2211 | -9/Mines | Accompanied by 1 ally 2225 | -9/Mines | Learned Materials trap positions 2298 | -9/Mines | Discovered new exit (range 12) 2319 | -9/Mines | Entered Materials 2319 | -8/Materials | Accompanied by 1 ally 2319 | -8/Materials | Evolved 4 slots: Utility x4 2320 | -8/Materials | Loaded intel: 23 trap records 2385 | -8/Materials | Repaired Seismic Detector 3035 | -8/Materials | Discovered new exit (range 12) 3088 | -8/Materials | Identified Exp. Sensor Array 3264 | -8/Materials | Garrison activated, responded to threat 3674 | -8/Materials | Discovered new exit (range 16) 4959 | -8/Materials | Central database locked down 5234 | -8/Materials | Entered Factory 5234 | -7/Factory | Accompanied by 1 ally 5234 | -7/Factory | Evolved 2 slots: Propulsion x1, Utility x1 5259 | -7/Factory | Build established: Hacker-Mutant 5422 | -7/Factory | Discovered new exit (range 16) 5495 | -7/Factory | Discovered new exit (range 5) 5496 | -7/Factory | Identified exit to Lower Caves 5573 | -7/Factory | Build established: Hacker-Sprinter 5669 | -7/Factory | Identified exit to Storage 6015 | -7/Factory | Entered Lower Caves 6046 | -7/Lower Caves | Learned Factory emergency access door positions 6056 | -7/Lower Caves | Encountered a Warlord checkpoint 6088 | -7/Lower Caves | A Derelict revealed a hidden shortcut to a safe place 6090 | -7/Lower Caves | Identified exit to Zion 6239 | -7/Lower Caves | Discovered new exit (range 11) 6242 | -7/Lower Caves | Identified exit to Lower Caves 6243 | -7/Lower Caves | Entered another Lower Caves area 6245 | -7/Lower Caves | Discovered new exit (range 13) 6250 | -7/Lower Caves | Encountered a Warlord checkpoint 6250 | -7/Lower Caves | Identified exit to Factory 7227 | -7/Lower Caves | Spotted B-75 Beast 7297 | -7/Lower Caves | Attracted the attention of an 0b10 checkpoint 7297 | -7/Lower Caves | Discovered new exit (range 7) 7298 | -7/Lower Caves | Identified exit to Data Miner 7298 | -7/Lower Caves | Entered Data Miner 7298 | -7/Data Miner | Discovered new exit (range 6) 7304 | -7/Data Miner | Met Data Miner 7310 | -7/Data Miner | Learned location of Section 7 (-2) 7310 | -7/Data Miner | Acquired the access code to Warlord's prototype stash 7314 | -7/Data Miner | Received God Mode back door access code from Data Miner 7325 | -7/Data Miner | Identified exit to Proximity Caves 7326 | -7/Data Miner | Entered Proximity Caves 7329 | -6/Proximity Caves | Lost 3 parts (1p1u1w) 7360 | -6/Proximity Caves | Learned location of 2 exits from Factory 7363 | -6/Proximity Caves | Spotted B-75 Beast 7417 | -6/Proximity Caves | Learned 8 Factory zone layouts 7457 | -6/Proximity Caves | Discovered exit to Factory (range 11) 7461 | -6/Proximity Caves | Entered Factory 7461 | -6/Factory | Evolved 2 slots: Propulsion x1, Utility x1 7462 | -6/Factory | Identified exit to Lower Caves 7463 | -6/Factory | Identified exit to Factory 7603 | -6/Factory | Repaired Cld. VTOL Module 7751 | -6/Factory | Lost 3 parts (1p1n1u) 7952 | -6/Factory | Spotted B-75 Beast 8170 | -6/Factory | Repaired Broken Cld. VTOL Module 8197 | -6/Factory | Repaired Imp. Reaction Control System 8222 | -6/Factory | Sucked down chute 8222 | -6/Factory | Entered Waste 8229 | -6/Waste | Spotted C-40 Crusher 8231 | -6/Waste | Spotted C-40 Crusher 8231 | -6/Waste | Spotted C-40 Crusher 8233 | -6/Waste | Spotted C-40 Crusher 8236 | -6/Waste | Discovered new exit (range 15) 8237 | -6/Waste | EMP discharged 8240 | -6/Waste | Identified exit to Factory 8241 | -6/Waste | Entered Factory 8497 | -6/Factory | Fabricated Adv. Hacking Suite (x1) 8647 | -6/Factory | Discovered exit to Factory (range 4) 8791 | -6/Factory | Discovered exit to Factory (range 16) 8846 | -6/Factory | Fabricated Adv. Hacking Suite (x1) 8936 | -6/Factory | Discovered exit to Factory (range 4) 9023 | -6/Factory | Fabricated Mni. Smartbomb Launcher (x1) 9044 | -6/Factory | Entered another Factory area 9044 | -5/Factory | Evolved 2 slots: Power x1, Utility x1 9134 | -5/Factory | Repaired Nuclear Pulse Thruster 9166 | -5/Factory | Repaired Broken Mic. Antimatter Reactor 9200 | -5/Factory | Spotted B-75 Beast 9212 | -5/Factory | Identified exit to Upper Caves 9212 | -5/Factory | Identified exit to Extension 9417 | -5/Factory | Fabricated Exp. Sensor Array? 9431 | -5/Factory | Build established: Wizard-Sprinter 9513 | -5/Factory | Fabricated Cld. Nuclear Pulse Thruster (x1) 9697 | -5/Factory | Fabricated Cld. Nuclear Pulse Thruster? 9848 | -5/Factory | Entered Upper Caves 9848 | -5/Upper Caves | Accompanied by 2 allies 9852 | -5/Upper Caves | Learned Factory interactive machine intel 9854 | -5/Upper Caves | Encountered a Warlord checkpoint 9855 | -5/Upper Caves | Learned location of Warlord (-5) 10191 | -5/Upper Caves | Discovered new exit (range 5) 10192 | -5/Upper Caves | Identified exit to Upper Caves 10262 | -5/Upper Caves | Entered another Upper Caves area 10262 | -5/Upper Caves | Accompanied by 2 allies 10477 | -5/Upper Caves | Learned Factory terminal intel 10664 | -5/Upper Caves | Discovered new exit (range 11) 10667 | -5/Upper Caves | Identified exit to Warlord 10667 | -5/Upper Caves | Entered Warlord 10688 | -5/Warlord | Discovered new exit (range 9) 10879 | -5/Warlord | Warlord's base attacked by MAIN.C 10912 | -5/Warlord | Met Warlord 10916 | -5/Warlord | Opened Warlord's prototype stash 10917 | -5/Warlord | Found Prototype Device 10917 | -5/Warlord | Identified System Purifier 10925 | -5/Warlord | Found Prototype Reactor 10925 | -5/Warlord | Identified Vortex Chain Reactor 11229 | -5/Warlord | Warlord forces counterattacked 11290 | -5/Warlord | Opened side exit 11300 | -5/Warlord | Lost 3 allies 11360 | -5/Warlord | Lost 6 allies 11373 | -5/Warlord | Identified exit to Proximity Caves 11401 | -5/Warlord | Entered Proximity Caves 11401 | -4/Proximity Caves | Accompanied by 1 ally 11446 | -4/Proximity Caves | Acquired the password to a Derelict Tinkerer's latest research 12141 | -4/Proximity Caves | Crushed by falling debris 12172 | -4/Proximity Caves | Lost 3 parts (1p1u1w) 12175 | -4/Proximity Caves | Crushed by falling debris 12303 | -4/Proximity Caves | Discovered new exit (range 8) 12305 | -4/Proximity Caves | Identified exit to Factory 12318 | -4/Proximity Caves | Learned location of Armory (-3) 12345 | -4/Proximity Caves | Entered Factory 12345 | -4/Factory | Evolved 2 slots: Propulsion x1, Utility x1 12346 | -4/Factory | Loaded intel: 52 interactive machine locations 12347 | -4/Factory | Loaded intel: 26 terminal locations 12581 | -4/Factory | Fabricated Adv. Hacking Suite? 12632 | -4/Factory | Fabricated Adv. Hacking Suite (x1) 12670 | -4/Factory | Discovered new exit (range 4) 12671 | -4/Factory | Identified exit to Upper Caves 12715 | -4/Factory | Identified exit to Research 12979 | -4/Factory | Spotted B-86 Titan 13081 | -4/Factory | Assembled infested ambush trap array 13113 | -4/Factory | Spotted B-86 Titan 13159 | -4/Factory | Entered Research 13159 | -3/Research | Evolved 2 slots: Power x1, Utility x1 13185 | -3/Research | Lost 4 parts (1p1n2u) 13378 | -3/Research | Discovered new exit (range 9) 13380 | -3/Research | Identified exit to Quarantine 13380 | -3/Research | Entered Quarantine 13467 | -3/Quarantine | Met incapacitated Sigix Warrior 13467 | -3/Quarantine | Lockdown squad dispatched 13469 | -3/Quarantine | Acquired the access code to the Sigix quarantine chamber 13469 | -3/Quarantine | Unlocked Sigix quarantine chamber 13518 | -3/Quarantine | System corruption reached 10% 13519 | -3/Quarantine | Spotted Alpha 7 13547 | -3/Quarantine | Lost 11 parts (1p3n6u1w) 13596 | -3/Quarantine | Found Prototype Device 13596 | -3/Quarantine | Identified Adv. Kinecellerator 13620 | -3/Quarantine | Core integrity fell below 50% 13697 | -3/Quarantine | Found Alien Artifact 13697 | -3/Quarantine | Identified Hpw. Transdimensional Reconstructor 13697 | -3/Quarantine | Warped through subspace 13741 | -3/Quarantine | Discovered new exit (range 5) 13743 | -3/Quarantine | Identified exit to Research 13803 | -3/Quarantine | Entered Research 13803 | -2/Research | Warlord forces began assault on 0b10 13803 | -2/Research | Evolved 2 slots: Propulsion x1, Utility x1 13818 | -2/Research | Build established: Wizard-Mutant 13898 | -2/Research | Adv. Hacking Suite fried by hacking feedback 13907 | -2/Research | Core integrity fell below 50% 13913 | -2/Research | Research machine network offline 13932 | -2/Research | Lost 6 parts (2n4u) 13937 | -2/Research | Spotted B-90 Cyclops 14015 | -2/Research | Spotted B-90 Cyclops 14061 | -2/Research | Found Prototype Slashing Weapon 14061 | -2/Research | Identified Vibroblade 14067 | -2/Research | Core integrity fell below 20% 14100 | -2/Research | Destroyed by S-43 Plague with Heavy Machine Gun Last Messages --------------- 14069_ Penetrated by Slug. 14076_ Acquired Prototype Device. 14076_ Identified Exp. Reaction Control System. 14077_ System corrupted: Energy discharge (-9). 14081_ Adv. Hacking Suite destroyed. 14082_ S-43 Plague destroyed. 14083_ Adv. Signal Interpreter destroyed. 14084_ Cld. Antigrav System destroyed. 14085_ Q-thruster destroyed. 14085_ Dropped Mic. Antimatter Reactor. 14086_ Exp. Reaction Control System destroyed. 14087_ ECM Suite destroyed. 14091_ Acquired Lyr. Medium Armor Plating. 14093_ Dropped Exp. Field Recycling Unit. 14096_ Destroyed Xenon Bombardment Thruster. 14096_ Imp. Hacking Suite destroyed. 14097_ Cld. Antigrav System destroyed. 14098_ Dropped Vibroblade. 14099_ Dropped Lyr. Medium Armor Plating. 14099_ Slammed into S-43 Plague. Map ----- +----------------------------------------------------+ | | | | | | | | | | | | | | | ?????????????????????????????? | | ?????????????????????????????? | | ?????????????????????????????? | | ?????????????????????????????? | | ####?????????????????????????? | | #################?????????? | | [ ## +?????????? | | ## #?????????? | | ## +?????????? | | ## """" #?????????? | | ?# """" ##????????? | | +##?# """"" #????????? | | ### """" #????????? | | ! #???###### | | ### #???# ! # | | ##?# #???# # | | #??###+####### #???#sss # | | ??? ????# #####ss! # | | ?# + Y= s/@ # | | # ###+#######s/ !# | | # # *%= ## # | | ##?########### ## # | | ?????????????# ! ## ! # | | ?????????????# ####### | | ?????????????##########?????? | | ????????????????????????????? | | ????????????????????????????? | | ?????????????????????????????? | | ?????????????????????????????? | | ?????????????????????????????? | | ?????????????????????????????? | | ?????????????????????????????? | | ?????????????????????????????? | | ?????????????????????????????? | | ?????????????????????????????? | | ?????????????????????????????? | | ?????????????????????????????? | | ?????????????????????????????? | | ?????????????????????????????? | | ?????????????????????????????? | | ?????????????????????????????? | | ?????????????????????????????? | | ?????????????????????????????? | +----------------------------------------------------+ Best States ------------- Heat Dissipation 49 Coolant Potential 120 Energy Generation 33 Energy Capacity 265 Matter Stores 300 Matter Capacity 300 Sight Range 16 Robot Scan Range 20 Terrain Scan Density 10 ECM Strength 2 Jamming Range 14 Power Amplification 40 Additional Mass Support 12 Armor Coverage 450 Evasion (%) 76 Melee Accuracy 12 Recoil Reduction 1 Offensive Hacking 66 Defensive Hacking 20 Item Schematics ----------------- ECM Suite | -10/Materials | Hacked Mni. Grenade Launcher | -9/Mines | Hacked System Shield | -8/Materials | Scanalyzed Exp. Sensor Array | -8/Materials | Scanalyzed Hacking Suite | -8/Materials | Scanalyzed Reaction Control System | -8/Materials | Scanalyzed Cesium-ion Thruster | -8/Materials | Scanalyzed Weight Redist. System | -8/Materials | Hacked Scythe | -8/Materials | Hacked Combat Drone Bay | -7/Data Miner | Free Lgt. Regenerative Plating | -7/Data Miner | Free Cld. Aerolev Unit | -7/Data Miner | Free Exp. Power Shielding | -7/Data Miner | Free Imp. Heavy Laser | -7/Data Miner | Free Antigrav System | -7/Data Miner | Free Adv. System Shield | -7/Data Miner | Free Imp. Plasma Cutter | -7/Data Miner | Free Imp. Trap Scanner | -7/Data Miner | Free Tesla Rifle | -7/Data Miner | Free Railgun | -7/Data Miner | Free Imp. Hacking Suite | -6/Factory | Scanalyzed Imp. Reaction Control System | -6/Factory | Scanalyzed Neutrino Core | -6/Factory | Hacked Adv. Hacking Suite | -6/Factory | Hacked Cld. VTOL Module | -6/Factory | Hacked Exp. Propulsion Shielding | -6/Factory | Hacked Imp. Cloaking Device | -6/Factory | Hacked Mic. Antimatter Reactor | -6/Factory | Scanalyzed Gravity Neutralizer | -6/Factory | Scanalyzed Mni. Smartbomb Launcher | -6/Factory | Hacked Adv. Power Amplifier | -5/Factory | Hacked Cld. Nuclear Pulse Thruster | -5/Factory | Hacked Q-thruster | -5/Factory | Hacked Lgt. Quantum Reactor | -4/Factory | Hacked Exp. ECM Suite | -4/Factory | Hacked Imp. Q-thruster | -4/Factory | Hacked Exp. Power Amplifier | -3/Research | Scanalyzed Cld. Impulse Thruster | -3/Research | Scanalyzed Cld. Q-thruster | -3/Research | Hacked Adv. Phase Shifter | -3/Quarantine | Hacked Adv. Reaction Control System | -3/Quarantine | Scanalyzed Robot Schematics ------------------ X-67 Chaingunner | -7/Data Miner | Free H-66 Slayer | -7/Data Miner | Free M-28 Smith | -7/Data Miner | Free B-48 Gladiator | -7/Data Miner | Free L-41 Fighter | -7/Data Miner | Free S-27 Virus | -7/Data Miner | Free I-47 Archangel | -7/Data Miner | Free Fabricated ------------ Adv. Hacking Suite | x1 | -6/Factory Adv. Hacking Suite | x1 | -6/Factory Mni. Smartbomb Launcher | x1 | -6/Factory Exp. Sensor Array | x1 | -5/Factory Cld. Nuclear Pulse Thruster | x1 | -5/Factory Cld. Nuclear Pulse Thruster | x1 | -5/Factory Adv. Hacking Suite | x1 | -4/Factory Adv. Hacking Suite | x1 | -4/Factory Alien Tech Used ----------------- High-powered Transdimensional Reconstructor Achievements -------------- False Reunion Reappropriation Whoosh! Challenges ------------ None Game ------ Seed RagnarokCombatBlaster Manual? 0 Play Time 04:06:50 Cumulative 95.3 hours Start 2024.05.10 @ 16:12:15 End 2024.05.10 @ 22:01:55 Sessions 1 Manual Loads 0 Difficulty Rogue Special Mode None Game No. 62 Rogue 62 Adventurer 0 Explorer 0 Win Type - Total 1 Types 1/0/0/0/0/0/0/0/0 Lore% 57 Gallery% 47 Achievement% 44 Wizard Run 0 Options --------- Layout 0 ASCII 0 Keyboard 0 Movement Mouse Keybinds 0 Fullscreen 1 Font 18/SmallcapsGlow Map View 76x50 Zoom Use 0% Tactical HUD 1 Map Filters NONE Filters NONE Steam 1 RUN: 050b2fa1-c3fd-4731-afa9-face54bef3ee